bitfinex/quotes_ETHUSD_20250827
["timestamp","ask_amount","ask_price","bid_price","bid_amount"]
[1756291141029,0.02,4583.8,4582.8,2.18207209]
[1756291141030,0.02,4583.8,4582.9,2.18202448]
[1756291141324,0.02,4583.8,4583.7,2.49624365]
[1756291141524,0.02,4583.8,4583.7,0.3146]
[1756291142141,0.02,4583.8,4583.3,0.4457]
[1756291142348,0.02,4583.8,4582.7,0.4457]
[1756291142949,0.02,4583.8,4583.7,0.3146]
[1756291143451,0.02,4583.8,4583.1,2.18192518]
[1756291143623,0.02,4583.8,4582.7,0.4457]
[1756291143813,0.022,4583.8,4582.5,0.4457]
[1756291144015,2.18173396,4583.6,4582.5,0.4457]
[1756291144620,0.022,4583.8,4583.5,0.3146]
[1756291144919,0.022,4583.8,4583.6,2.62737971]
[1756291145341,0.022,4583.8,4583.7,0.7603]
[1756291145544,0.022,4583.8,4583.7,2.96376008]
[1756291145752,0.20053068,4585.0,4584.7,2.18116779]
[1756291145934,0.4521,4586.5,4584.7,2.18116779]
[1756291146142,0.20053062,4586.4,4584.7,2.94146779]
[1756291146353,0.40106162,4586.4,4584.7,2.94146779]
[1756291146676,0.20053062,4586.3,4584.7,2.94146779]
[1756291146879,0.20053062,4586.2,4584.7,2.94146779]
[1756291147169,0.20053062,4586.1,4584.7,2.94146779]
[1756291147339,0.20086648,4586.0,4584.7,2.94146779]
[1756291147538,5.18012957,4586.9,4584.7,2.63318384]
[1756291147757,0.2208697,4586.8,4584.7,2.63318384]
[1756291147955,2.18025762,4586.7,4584.7,2.63318384]
[1756291148176,0.4521,4586.3,4584.7,0.7603]
[1756291148347,0.4721,4585.8,4584.0,0.4457]
[1756291148669,2.18074252,4585.6,4584.4,2.18130823]
[1756291148825,2.18078869,4585.5,4584.4,2.18130823]
[1756291149030,0.4721,4585.8,4584.2,2.1813851]
[1756291149226,0.4721,4585.8,4584.2,0.4457]
[1756291149671,0.4721,4585.8,4583.6,2.18169009]
[1756291150005,0.4521,4584.9,4583.0,0.4457]
[1756291150136,2.63317863,4584.9,4583.7,2.18164319]
[1756291150334,2.63317863,4584.9,4583.0,0.4457]
[1756291150335,2.63317863,4584.9,4583.8,2.18158733]
[1756291150554,2.18117354,4584.7,4583.5,2.18173165]
[1756291150740,2.22112034,4584.8,4583.0,0.4457]
[1756291150945,0.1088,4584.1,4583.8,2.18158916]
[1756291151166,0.1088,4584.1,4583.5,0.1088]
[1756291151763,0.292,4583.6,4582.5,0.4457]
[1756291151925,0.1088,4583.5,4582.8,2.18205566]
[1756291152332,0.1088,4583.5,4583.3,2.18181858]
[1756291152532,0.1088,4583.5,4583.4,0.7603]
[1756291152762,0.20089896,4584.4,4583.4,0.7603]
[1756291152953,0.1088,4584.0,4583.7,2.18163734]
[1756291153244,0.1088,4584.0,4583.4,0.1088]
[1756291153441,2.2903043,4584.0,4583.4,0.1088]
[1756291153669,0.1088,4584.0,4583.4,0.08395134]
[1756291153895,2.18154327,4584.0,4582.9,2.1820112]
[1756291154092,0.1088,4583.0,4582.4,0.1088]
[1756291154601,0.1088,4583.0,4581.9,0.4457]
[1756291154771,0.1088,4582.6,4581.9,0.1088]
[1756291155361,0.4521,4582.9,4581.5,2.18268837]
[1756291155592,0.1088,4582.3,4581.7,2.18259314]
[1756291155907,0.1088,4582.0,4581.4,0.1088]
[1756291157099,0.1088,4582.0,4580.8,0.4667]
[1756291157100,0.1088,4582.0,4581.2,0.4457]
[1756291157680,0.1088,4582.0,4581.3,2.182786]
[1756291157890,0.1088,4582.0,4581.2,0.4457]
[1756291158096,0.1088,4582.0,4581.9,0.3146]
[1756291158275,0.1088,4582.0,4581.5,0.4457]
[1756291158479,0.1088,4582.0,4580.9,0.4457]
[1756291158696,0.1088,4582.0,4581.0,0.1088]
[1756291158996,0.108,4582.0,4581.4,2.18272806]
[1756291159198,0.108,4582.0,4581.0,0.1088]
[1756291159695,0.108,4582.0,4581.7,2.18254934]
[1756291159921,0.108,4582.0,4581.8,2.20250604]
[1756291160116,0.108,4582.0,4581.8,0.02]
[1756291160665,0.108,4582.0,4581.9,2.1825007]
[1756291160995,0.108,4582.0,4581.9,2.4889007]
[1756291161164,0.1088,4582.4,4581.9,0.7772]
[1756291161370,0.4621,4583.1,4581.8,2.20250829]
[1756291161572,0.1088,4582.0,4581.9,2.1825007]
[1756291161769,0.1088,4582.0,4581.8,0.02]
[1756291161970,0.1088,4582.0,4581.9,2.1825007]
[1756291162170,0.1088,4582.0,4581.9,2.4889007]
[1756291162799,0.20127547,4582.9,4581.9,0.7772]
[1756291163000,0.1088,4582.4,4582.0,0.4708]
[1756291163197,0.34151574,4583.3,4581.8,2.20253412]
[1756291163198,0.20139532,4583.2,4582.5,2.18216971]
[1756291163362,0.1088,4582.6,4582.3,2.18231019]
[1756291163561,0.1088,4582.6,4582.5,2.46621321]
[1756291164013,0.1088,4582.6,4582.5,0.3064]
[1756291164309,0.1088,4582.6,4582.0,2.29124805]
[1756291164474,0.1088,4582.6,4582.0,0.1088]
[1756291164679,0.1088,4582.6,4582.5,2.48861494]
[1756291165077,0.1088,4582.6,4582.1,2.65318383]
[1756291165276,0.1088,4582.6,4582.2,2.1823571]
[1756291165589,0.1088,4582.6,4582.3,2.18229856]
[1756291165787,0.1088,4582.6,4582.0,2.29121805]
[1756291165788,0.1088,4582.6,4582.5,2.18221494]
[1756291166597,0.1088,4582.6,4581.9,2.1825007]
[1756291166801,0.4129,4582.6,4581.8,0.1288]
[1756291166967,0.4129,4582.6,4582.1,2.18238913]
[1756291167167,0.1088,4582.6,4582.2,2.18235151]
[1756291167701,0.1088,4582.6,4582.0,2.18244309]
[1756291167871,0.1088,4582.6,4581.9,2.1825007]
[1756291168072,0.1088,4582.6,4582.2,2.18235046]
[1756291168373,0.1088,4582.6,4581.8,2.31132246]
[1756291168574,0.1088,4582.6,4581.9,2.1825007]
[1756291168775,0.1088,4582.6,4582.4,2.18226167]
[1756291169100,0.1088,4582.6,4582.4,2.18221652]
[1756291169401,0.1088,4582.6,4582.5,2.48861494]
[1756291169601,0.1088,4582.6,4582.1,2.18240019]
[1756291169801,0.3041,4582.6,4582.0,2.1824118]
[1756291170022,0.1088,4582.1,4582.0,2.1824118]
[1756291170302,0.875,4582.1,4581.8,0.02]
[1756291170468,2.1825007,4581.9,4581.8,0.02]
[1756291170676,2.38426035,4581.9,4581.8,0.02]
[1756291170994,3.15046035,4581.9,4581.8,0.02]
[1756291171306,2.9487007,4581.9,4581.8,0.02]
[1756291173195,0.7662,4581.9,4581.8,0.02]
[1756291173504,0.1088,4581.9,4581.8,2.97974834]
[1756291174018,0.34156555,4583.2,4582.4,2.1822214]
[1756291174308,2.64403446,4583.1,4582.0,2.18245256]
[1756291174491,0.4621,4583.1,4581.8,0.02]
[1756291174802,0.34156555,4583.2,4582.4,2.18225895]
[1756291174972,0.1088,4582.3,4581.9,2.1825007]
[1756291175173,0.1088,4582.3,4582.2,0.3064]
[1756291175602,0.34156555,4583.2,4582.2,0.3064]
[1756291175603,0.34156555,4583.2,4582.4,2.18225462]
[1756291175808,0.1088,4582.6,4581.9,0.5796]
[1756291176101,0.1088,4582.3,4581.9,2.18249238]
[1756291176308,0.4621,4583.1,4581.8,0.02]
[1756291176518,0.1088,4581.9,4581.8,0.02]
[1756291176720,0.4129,4581.9,4581.8,0.02]
[1756291177227,0.1088,4581.9,4581.8,0.02]
[1756291178804,0.875,4581.9,4581.8,0.021]
[1756291179798,3.0575007,4581.9,4581.8,0.021]
[1756291180583,3.25980121,4581.9,4581.8,0.021]
[1756291180783,3.25979968,4581.9,4581.8,0.021]
[1756291181414,1.07742675,4581.9,4581.8,0.021]
[1756291181616,0.31122675,4581.9,4581.8,0.021]
[1756291181917,0.1088,4581.9,4581.8,0.3274]
[1756291182391,0.1088,4581.9,4581.8,0.021]
[1756291182791,0.20242607,4582.3,4581.8,0.021]
[1756291182792,0.20242607,4582.3,4581.8,0.7982]
[1756291182992,0.1088,4582.1,4581.9,0.4708]
[1756291183212,0.1088,4582.1,4582.0,0.7772]
[1756291183517,0.108,4582.1,4582.0,0.3064]
[1756291183705,0.108,4582.1,4582.0,0.28453527]
[1756291184419,0.108,4582.1,4581.8,0.021]
[1756291184796,0.108,4582.1,4581.9,2.18246025]
[1756291184987,0.108,4582.1,4582.0,2.18245307]
[1756291185223,0.108,4582.1,4581.9,2.18249975]
[1756291185521,0.108,4582.1,4581.8,0.021]
[1756291185822,0.3041,4581.9,4581.8,0.021]
[1756291186195,2.4866007,4581.9,4581.8,0.021]
[1756291186398,3.15132392,4581.9,4581.8,0.021]
[1756291186795,0.50672322,4581.9,4581.8,0.021]
[1756291186993,3.15132392,4581.9,4581.8,0.021]
[1756291187695,0.50672322,4581.9,4581.8,0.021]
[1756291188022,2.68922392,4581.9,4581.8,0.021]
[1756291188406,3.15132392,4581.9,4581.8,0.021]
[1756291188999,0.20262322,4581.9,4581.8,0.021]
[1756291189204,0.1088,4581.9,4581.8,0.021]
[1756291189398,0.1088,4581.9,4581.8,0.7982]
[1756291189605,0.1088,4581.9,4581.8,2.98074834]
[1756291189921,0.1088,4581.9,4581.8,0.3274]
[1756291190094,0.1088,4581.9,4581.8,0.021]
[1756291190490,0.4126,4581.9,4581.8,0.021]
[1756291190700,0.8696,4581.9,4581.8,0.021]
[1756291190919,3.0521007,4581.9,4581.8,0.021]
[1756291191344,3.25457595,4581.9,4581.8,0.021]
[1756291191527,2.79757595,4581.9,4581.8,0.021]
[1756291191733,0.61507525,4581.9,4581.8,0.021]
[1756291192048,0.31127525,4581.9,4581.8,0.021]
[1756291192268,0.1088,4581.9,4581.8,0.021]
[1756291192414,2.5951007,4581.9,4581.8,0.021]
[1756291192614,0.31127525,4581.9,4581.8,0.021]
[1756291193044,0.1088,4581.9,4581.8,0.021]
[1756291193613,2.5951007,4581.9,4581.8,0.021]
[1756291193854,0.1088,4581.9,4581.8,0.021]
[1756291194253,0.31124854,4581.9,4581.8,0.021]
[1756291194613,2.79756375,4581.9,4581.8,0.021]
[1756291196642,3.25456375,4581.9,4581.8,0.021]
[1756291197542,2.18254834,4581.8,4581.3,0.001]
[1756291197778,2.1827389,4581.4,4581.3,0.001]
[1756291197943,5.68900195,4581.4,4581.3,0.001]
[1756291198146,6.48766526,4581.4,4581.3,0.001]
[1756291200982,6.48758304,4581.4,4581.3,0.001]
[1756291201283,18.25109644,4581.4,4581.3,1e-08]
[1756291201581,0.66,4581.2,4580.8,0.02]
[1756291201771,5.84292949,4581.0,4580.8,0.02]
[1756291201976,2.68915781,4580.9,4580.8,0.02]
[1756291202171,3.14615781,4580.9,4580.8,0.02]
[1756291202376,0.20238067,4580.9,4580.8,0.3224]
[1756291202586,0.34165654,4581.9,4580.8,0.7962]
[1756291202750,0.20218024,4581.8,4580.8,0.7962]
[1756291202955,0.20218024,4581.8,4580.9,0.4738]
[1756291203254,0.20218024,4581.8,4581.7,0.3024]
[1756291203490,0.002,4582.0,4581.7,0.7762]
[1756291203698,0.002,4582.0,4581.8,0.4738]
[1756291204056,0.002,4582.0,4581.9,0.7762]
[1756291204292,0.002,4582.0,4581.1,0.4738]
[1756291204293,0.3058,4582.0,4581.1,0.4738]
[1756291204786,0.3058,4582.0,4581.1,2.65667932]
[1756291204973,0.002,4582.0,4581.2,2.18283136]
[1756291205181,0.002,4582.0,4581.9,0.3024]
[1756291205988,0.002,4582.0,4581.9,0.7762]
[1756291206991,0.002,4582.0,4581.9,2.9587007]
[1756291207786,0.0012,4582.0,4581.9,2.9587007]
[1756291208085,0.0012,4582.0,4581.9,3.0675007]
[1756291208454,0.0012,4582.0,4581.9,3.59250803]
[1756291210182,0.002,4582.5,4581.9,3.61433303]
[1756291210387,0.002,4582.5,4582.4,2.18226256]
[1756291210592,0.002,4582.5,4582.4,2.20408518]
[1756291210795,1e-08,4582.5,4582.4,3.74908518]
[1756291210989,1e-08,4582.5,4582.4,4.32040442]
[1756291211605,1e-08,4582.8,4582.7,2.84211971]
[1756291211967,1e-08,4582.8,4582.7,3.25331971]
[1756291212269,1e-08,4582.8,4582.7,3.72711971]
[1756291212468,1e-08,4582.8,4582.7,4.37954705]
[1756291212972,1e-08,4582.8,4582.7,7.37954705]
[1756291213469,1e-08,4582.8,4582.7,7.54186199]
[1756291215973,1e-08,4582.8,4582.7,7.43306199]
[1756291216168,1e-08,4582.8,4582.7,7.54186199]
[1756291218292,1e-08,4583.4,4583.3,2.84183404]
[1756291218675,1e-08,4583.4,4583.3,3.72683404]
[1756291220377,1e-08,4583.4,4583.3,3.06683404]
[1756291220587,1e-08,4583.4,4583.3,2.59303404]
[1756291221922,1e-08,4583.4,4583.3,2.29063404]
[1756291222226,1e-08,4583.4,4583.3,2.73788773]
[1756291222381,1e-08,4583.4,4583.3,3.03898773]
[1756291222732,1e-08,4583.4,4583.3,3.49688773]
[1756291223090,1e-08,4583.4,4583.3,4.15688773]
[1756291223909,1e-08,4583.4,4583.3,3.03898773]
[1756291224108,0.29490001,4583.4,4583.3,2.73788773]
[1756291224410,0.74290001,4583.4,4581.9,2.1825007]
[1756291224610,0.74290001,4583.4,4583.2,2.18183429]
[1756291225813,0.74290001,4583.4,4583.1,0.1088]
[1756291226181,0.29490001,4583.4,4583.3,2.18183404]
[1756291226415,1e-08,4583.4,4583.3,2.18183404]
[1756291226815,1e-08,4583.4,4583.3,2.73381578]
[1756291226983,1e-08,4583.4,4583.3,2.71199744]
[1756291228420,1e-08,4583.4,4583.3,2.41089744]
[1756291228602,0.74290001,4583.4,4583.1,0.1088]
[1756291228783,0.448,4583.3,4583.1,0.1088]
[1756291229196,0.7429,4583.2,4583.1,2.29072543]
[1756291229830,0.2949,4583.2,4583.1,2.29072543]
[1756291230016,1e-08,4583.4,4583.3,2.18183404]
[1756291230329,1e-08,4583.4,4583.3,2.62908999]
[1756291230707,0.29490001,4583.4,4583.1,0.1088]
[1756291231020,0.448,4583.3,4583.1,0.1088]
[1756291231325,0.448,4583.3,4583.1,2.29070271]
[1756291231536,0.2949,4583.2,4583.1,2.29070271]
[1756291231828,1e-08,4583.4,4583.3,2.18183404]
[1756291232210,0.29490001,4583.4,4583.3,2.18183404]
[1756291232406,0.29410001,4583.4,4583.3,2.18183404]
[1756291232607,0.1308,4583.8,4583.7,2.18164365]
[1756291232608,0.022,4583.8,4583.7,2.18164365]
[1756291232926,0.022,4583.8,4583.7,2.29044365]
[1756291233126,0.022,4583.8,4583.7,2.59154365]
[1756291233832,3.942,4583.8,4583.7,0.3376]
[1756291234005,3.942,4583.8,4583.7,2.51924365]
[1756291234209,1e-08,4583.8,4583.7,2.88053916]
[1756291234409,1e-08,4583.8,4583.7,3.04178653]
[1756291235420,1e-08,4583.8,4583.7,2.18164365]
[1756291236214,1e-08,4583.8,4583.7,2.41044365]
[1756291237226,1e-08,4583.8,4583.7,2.18164365]
[1756291240216,1e-08,4583.8,4583.7,2.41044365]
[1756291241941,0.74290001,4583.8,4583.7,2.18164365]
[1756291246851,1e-08,4583.8,4583.7,5.1006618]
[1756291247051,1e-08,4583.8,4583.7,4.2976618]
[1756291247251,1e-08,4583.8,4583.7,2.8576618]
[1756291253066,1e-08,4583.8,4583.7,3.6606618]
[1756291254569,1e-08,4583.8,4583.7,3.7480938]
[1756291256771,0.042,4584.8,4584.2,2.18140569]
[1756291256772,0.04120001,4584.8,4584.2,2.18140569]
[1756291256955,0.04120001,4584.8,4584.7,2.28996779]
[1756291258271,0.76090001,4584.8,4584.7,2.28996779]
[1756291259492,0.04120001,4584.8,4584.7,2.28996779]
[1756291259644,3.96120001,4584.8,4584.7,2.96588814]
[1756291259843,3.92,4584.8,4584.7,2.96588814]
[1756291260072,7.0,4585.4,4585.3,2.18088238]
[1756291260379,7.2877,4585.4,4585.3,2.18088238]
[1756291260554,7.2877,4585.4,4585.3,2.28968238]
[1756291260754,7.7197,4585.4,4585.3,2.28968238]
[1756291260957,1.59,4586.2,4586.1,2.18050195]
[1756291261169,2.042,4586.8,4586.7,2.18021671]
[1756291261569,2.3297,4586.8,4586.7,2.18021671]
[1756291261886,1.61,4586.8,4586.7,2.61626689]
[1756291262178,1.61,4586.8,4586.7,2.78145289]
[1756291262979,1e-08,4586.8,4586.7,3.01025289]
[1756291264316,0.71970001,4586.8,4586.7,2.18021671]
[1756291264659,1.0,4586.5,4584.4,2.18128752]
[1756291264962,0.432,4586.4,4585.9,2.18058692]
[1756291265167,0.2877,4586.0,4585.9,2.18059704]
[1756291265366,0.7197,4586.0,4585.9,2.18059704]
[1756291265554,0.7197,4586.0,4585.6,2.18070808]
[1756291265762,1.0,4585.8,4585.6,2.18070808]
[1756291265962,1.0,4585.8,4584.5,0.16574031]
[1756291265963,0.7197,4585.7,4584.7,2.18116779]
[1756291266165,0.7197,4585.7,4584.8,2.18112022]
[1756291266350,0.2877,4585.7,4585.3,2.18083944]
[1756291266549,0.432,4585.6,4585.3,2.18084723]
[1756291266754,0.2877,4585.4,4585.3,2.18084723]
[1756291267169,0.7197,4585.4,4585.3,2.18084723]
[1756291269676,0.7197,4585.4,4584.8,0.02]
[1756291269966,1.0,4585.1,4584.8,2.20111976]
[1756291270303,0.2877,4584.9,4584.8,0.02]
[1756291270756,0.7197,4584.9,4584.8,2.20112022]
[1756291271094,0.432,4585.6,4585.5,2.18078726]
[1756291271395,0.7197,4585.6,4585.5,2.18078726]
[1756291271582,0.7197,4585.6,4585.5,2.28958726]
[1756291274302,0.432,4586.1,4585.5,0.1088]
[1756291274462,1.0,4586.0,4585.9,2.18055069]
[1756291274798,1.7197,4586.0,4585.9,2.18055069]
[1756291275364,0.7197,4586.0,4585.9,2.18055069]
[1756291275790,1.0,4585.9,4585.8,0.1088]
[1756291276091,1.0,4585.4,4584.8,0.021]
[1756291276305,0.2877,4584.9,4584.8,0.1298]
[1756291276814,0.7197,4584.9,4584.8,2.31089204]
[1756291277598,1.8132,4585.3,4585.2,2.18092994]
[1756291277769,2.1009,4585.3,4585.2,2.18092994]
[1756291278319,1.3812,4585.3,4585.1,2.18096766]
[1756291278620,1.3812,4585.3,4585.2,2.28972994]
[1756291278963,1.3812,4585.3,4585.2,2.51852994]
[1756291279218,1.3812,4585.3,4585.2,2.98848276]
[1756291279716,0.1088,4586.4,4586.3,2.18040686]
[1756291279996,1.0,4586.6,4586.5,2.18031178]
[1756291280329,1.7617,4586.6,4586.5,2.18031178]
[1756291281162,1.7617,4586.6,4586.4,2.18035159]
[1756291281475,1.2888,4586.6,4586.5,2.18031178]
[1756291281675,1.2888,4586.6,4586.5,2.17436487]
[1756291281876,1.7609,4586.6,4586.5,2.17436487]
[1756291282177,1.7609,4586.6,4586.3,2.2891706]
[1756291282492,1.8533,4586.5,4586.4,2.18035932]
[1756291283062,2.1429,4586.5,4586.4,2.18035932]
[1756291284371,2.1429,4586.5,4586.3,2.28919955]
[1756291284683,2.1429,4586.5,4584.3,0.144]
[1756291284684,0.9992,4586.0,4584.3,0.144]
[1756291284873,0.9992,4585.7,4585.6,0.1088]
[1756291285069,1.7609,4585.7,4585.6,0.1088]
[1756291285304,0.7617,4585.7,4585.6,0.1088]
[1756291285511,1.7609,4585.7,4584.8,0.021]
[1756291285876,0.9992,4585.3,4585.2,2.18092994]
[1756291286080,1.7609,4585.3,4584.9,0.1088]
[1756291286287,0.9992,4585.0,4584.9,0.1088]
[1756291286711,1.2888,4585.0,4584.9,0.1088]
[1756291286910,1.7609,4585.0,4584.9,2.18107265]
[1756291287816,1.2888,4585.0,4584.9,2.18107265]
[1756291287981,0.9992,4585.3,4585.2,2.18092994]
[1756291288608,0.9992,4585.6,4585.5,2.18078726]
[1756291290598,1.4713,4586.0,4585.7,2.18066995]
[1756291290795,0.4721,4585.9,4585.8,2.18063797]
[1756291291210,0.7617,4585.9,4585.8,2.18063797]
[1756291291411,0.7617,4585.9,4585.7,2.18068775]
[1756291291719,0.4721,4585.8,4585.7,2.18069215]
[1756291292017,0.7617,4585.8,4585.7,2.18069215]
[1756291292221,2.3804,4585.5,4585.2,0.1088]
[1756291292396,1.3812,4585.5,4585.2,0.1088]
[1756291292598,2.3804,4585.5,4585.4,2.18082643]
[1756291292789,2.3804,4585.5,4585.4,2.40962643]
[1756291292988,2.3804,4585.5,4585.4,2.18082643]
[1756291293214,2.8525,4585.5,4585.4,2.18082643]
[1756291293722,2.3804,4585.5,4585.4,2.18082643]
[1756291294890,1.3812,4585.5,4585.4,2.18082643]
[1756291295090,2.3804,4585.5,4585.4,2.18082643]
[1756291296698,2.67,4585.5,4585.4,2.18082643]
[1756291296901,3.1421,4585.5,4585.4,2.18082643]
[1756291297533,2.3804,4585.5,4585.4,2.18082643]
[1756291297865,1.3812,4585.5,4585.4,2.40962643]
[1756291298012,0.9992,4585.6,4585.4,0.2288]
[1756291298699,7.002,4585.8,4585.7,2.18069215]
[1756291299942,7.7637,4585.8,4585.7,2.18069215]
[1756291300912,7.002,4585.8,4585.7,2.18069215]
[1756291301302,7.7637,4585.8,4585.7,2.18069215]
[1756291301951,7.7637,4585.8,4585.6,0.1088]
[1756291302244,0.4721,4585.7,4585.3,2.18087511]
[1756291302406,0.4721,4585.6,4585.4,0.1088]
[1756291302609,7.002,4585.8,4585.5,2.18078726]
[1756291302913,1.7609,4585.6,4585.5,2.18078726]
[1756291303910,8.7609,4585.6,4585.5,2.08078726]
[1756291304866,8.7609,4585.6,4585.5,2.07956729]
[1756291305770,8.7601,4585.6,4585.5,2.07956729]
[1756291305940,7.9992,4585.6,4585.5,2.07956729]
[1756291306580,8.2888,4585.6,4585.4,0.1088]
[1756291306760,8.2888,4585.6,4585.2,2.28972994]
[1756291306761,0.9992,4585.3,4585.2,2.28972994]
[1756291307259,1.2888,4585.3,4585.2,2.28972994]
[1756291307854,1.7609,4585.3,4585.2,2.28972994]
[1756291308963,8.7609,4585.3,4585.1,0.001]
[1756291309756,8.2888,4585.3,4585.1,0.001]
[1756291310079,7.9992,4585.3,4585.2,2.18092994]
[1756291312679,7.9992,4585.3,4585.2,2.41102994]
[1756291312867,7.0,4585.3,4585.2,2.88121531]
[1756291313481,7.9992,4585.3,4585.2,2.88121531]
[1756291313686,7.9992,4585.3,4585.2,2.41102994]
[1756291314048,7.9992,4585.3,4585.2,2.18092994]
[1756291316394,7.0,4585.3,4585.2,2.18092994]
[1756291316592,8.757,4585.3,4585.1,0.001]
[1756291317866,10.93788608,4585.3,4585.1,0.001]
[1756291318486,2.18092994,4585.2,4585.1,0.001]
[1756291318781,9.18092994,4585.2,4585.1,0.001]
[1756291318989,7.7578,4585.2,4585.1,0.001]
[1756291321060,23.68938508,4585.2,4585.1,0.001]
[1756291321273,23.89253502,4585.2,4585.1,0.001]
[1756291321678,10.25067988,4585.2,4585.1,0.001]
[1756291322498,10.25057583,4585.2,4585.1,0.001]
[1756291323194,10.04752994,4585.2,4585.1,0.001]
[1756291323701,23.79818508,4585.2,4585.1,0.001]
[1756291323882,7.8666,4585.2,4585.1,0.001]
[1756291324095,10.04752994,4585.2,4585.1,0.001]
[1756291324401,7.0,4585.2,4585.1,0.2311]
[1756291324611,8.757,4585.2,4585.1,0.001]
[1756291324765,4.04672994,4585.2,4585.1,0.001]
[1756291324966,1.8658,4585.2,4585.1,0.001]
[1756291327410,4.04672994,4585.2,4585.1,0.001]
[1756291327913,1.8658,4585.2,4585.1,0.001]
[1756291328204,1.108,4585.2,4585.1,0.001]
[1756291328409,0.9992,4585.2,4585.1,0.001]
[1756291328904,1.3049,4585.2,4585.1,0.001]
[1756291329105,1.757,4585.2,4585.1,0.001]
[1756291329314,3.93792994,4585.2,4585.1,0.001]
[1756291330729,8.865,4585.2,4585.1,0.001]
[1756291331074,8.1072,4585.2,4585.1,0.001]
[1756291331299,7.9984,4585.2,4585.1,0.2311]
[1756291331500,7.9984,4585.2,4585.1,0.001]
[1756291331981,8.7562,4585.2,4585.1,0.001]
[1756291332191,7.9984,4585.2,4585.1,0.001]
[1756291332477,8.7562,4585.2,4585.1,0.001]
[1756291332787,7.3057,4585.2,4585.1,0.001]
[1756291333002,7.9984,4585.2,4585.1,0.001]
[1756291333979,7.0,4585.2,4585.1,0.2311]
[1756291334179,7.9984,4585.2,4585.1,2.41207751]
[1756291334379,7.9984,4585.2,4585.1,0.2311]
[1756291334614,7.0,4585.2,4585.1,2.41207751]
[1756291334911,7.9984,4585.2,4585.1,2.41207751]
[1756291335490,7.0,4585.2,4585.1,2.41207751]
[1756291336735,7.0,4585.6,4585.2,2.18092637]
[1756291337634,7.0,4585.6,4585.1,2.18196957]
[1756291337835,7.0,4585.6,4585.2,2.18091767]
[1756291339242,7.1088,4585.7,4585.2,0.44717329]
[1756291339560,0.9984,4585.5,4585.4,2.18083482]
[1756291339715,0.9984,4585.6,4585.5,2.28956513]
[1756291340657,7.0,4585.7,4585.5,2.28956513]
[1756291340964,0.9984,4585.6,4585.5,2.28956513]
[1756291341511,1.7356,4585.6,4585.5,0.1088]
[1756291341733,0.9984,4585.2,4585.1,0.001]
[1756291341927,7.36174194,4585.2,4585.1,0.001]
[1756291342118,8.09894194,4585.2,4585.1,0.001]
[1756291343449,1.8444,4585.2,4585.1,0.001]
[1756291343649,4.02532994,4585.2,4585.1,0.001]
[1756291343845,8.8444,4585.2,4585.1,0.001]
[1756291344346,11.02532994,4585.2,4585.1,0.001]
[1756291346030,8.8444,4585.2,4585.1,0.001]
[1756291347245,8.8444,4585.2,4585.1,0.2311]
[1756291347246,8.1072,4585.2,4585.1,0.2311]
[1756291347446,8.1072,4585.2,4585.1,2.41207751]
[1756291347938,7.9984,4585.2,4585.1,2.52087751]
[1756291349038,8.0004,4585.2,4585.1,2.52087751]
[1756291349942,8.3034,4585.2,4585.1,0.1098]
[1756291350264,8.8464,4585.2,4585.1,0.001]
[1756291352657,8.84531,4585.2,4585.1,0.001]
[1756291353176,8.84531,4585.2,4585.1,0.2311]
[1756291353177,8.10811,4585.2,4585.1,0.2311]
[1756291353475,8.41111,4585.2,4585.1,0.001]
[1756291353675,8.84531,4585.2,4585.1,0.001]
[1756291353847,8.73651,4585.2,4585.1,0.001]
[1756291354975,8.73571,4585.2,4585.1,0.001]
[1756291355675,8.30151,4585.2,4585.1,0.001]
[1756291355830,8.73571,4585.2,4585.1,0.001]
[1756291356736,8.30151,4585.2,4585.1,0.001]
[1756291358575,7.99851,4585.2,4585.1,0.001]
[1756291359166,7.99851,4585.2,4585.1,2.41207751]
[1756291359673,7.00011,4585.2,4585.1,2.41207751]
[1756291359838,7.00011,4585.2,4585.1,2.87349075]
[1756291361492,0.002,4585.2,4585.1,6.78609075]
[1756291361698,1e-08,4585.2,4585.1,6.78609075]
[1756291362544,1e-08,4585.8,4585.7,2.84069215]
[1756291363075,1e-08,4585.8,4585.7,3.32339215]
[1756291363273,1e-08,4585.8,4585.7,3.87380746]
[1756291367492,45.49687292,4588.0,4585.8,0.66]
[1756291367675,45.49687292,4588.0,4587.9,2.17964646]
[1756291367987,45.79987292,4588.0,4587.9,2.61558283]
[1756291368283,46.23407292,4588.0,4587.7,2.17971153]
[1756291368487,0.4342,4587.9,4587.8,2.17969397]
[1756291368784,0.7372,4587.9,4587.8,2.17969397]
[1756291369481,45.49687292,4588.0,4587.8,2.17969397]
[1756291369482,45.49687292,4588.0,4587.9,2.17964646]
[1756291369854,46.23407292,4588.0,4587.2,0.16718164]
[1756291370053,46.23407292,4588.0,4587.8,2.17967679]
[1756291370254,0.4321,4587.9,4587.8,2.17967679]
[1756291370456,0.745,4587.9,4587.5,2.17979662]
[1756291370686,0.745,4587.9,4587.2,0.16224333]
[1756291370687,0.4321,4587.8,4587.7,2.17974148]
[1756291370862,0.745,4587.8,4587.7,2.17974148]
[1756291375085,0.745,4587.8,4586.8,0.02]
[1756291375524,0.745,4587.8,4587.6,2.1797774]
[1756291375720,0.3129,4587.8,4587.6,2.1797774]
[1756291375907,0.4321,4587.7,4587.6,2.1797774]
[1756291376102,0.745,4587.7,4587.5,2.17983449]
[1756291376299,0.745,4587.7,4587.0,0.16489688]
[1756291376300,0.4321,4587.6,4587.0,0.16489688]
[1756291376513,0.4321,4587.6,4586.8,0.02]
[1756291376709,0.3129,4586.9,4586.8,0.02]
[1756291376916,0.3129,4586.9,4586.8,2.20016918]